Cogmind - Beta 16 @@@ ROGUE MODE // 2025.11.09 @ 17:00:52 Player: JuustuToug Result: Destroyed by as-78008 with Assembled Rifle Performance ------------- Evolutions (1) 500 Regions Visited (4) 800 Robots Destroyed (96) 480 Value Destroyed (2053) 2053 Prototype IDs (5) 100 Alien Tech Used (0) 0 Bonus (151) 151 TOTAL SCORE: 4084 Bonus ------- High Alert Combat Kills 151 Cogmind --------- Core Integrity 0/400 Matter 203/300 Energy 241/280 System Corruption 0% Temperature Cool (0) Movement Treading (240) Ox2 Location -9/Mines Parts ------- > --- POWER (1) -------- Cooled Ion Engine > --- PROPULSION (2) --- Light Treads Light Treads > --- UTILITY (4) ------ Huge Storage Unit Advanced Targeting Computer Advanced Targeting Computer Hardlight Generator > --- WEAPON (2) ------- Heavy Assault Rifle Heavy Assault Rifle > --- INVENTORY (25) --- Cooled Ion Engine Cooled Ion Engine Light Treads Light Treads Light Treads Light Treads Light Treads Light Treads Light Treads Armored Wheel Cooling System Huge Storage Unit Signal Interpreter Beam Rifle Advanced Beam Cannon Advanced Beam Cannon Advanced Beam Cannon Heavy Assault Rifle Improved Assault Rifle Datajack Katana Peak State ------------ > --- POWER ------------ Cooled Ion Engine > --- PROPULSION ------- Light Treads Armored Wheel > --- UTILITY ---------- Huge Storage Unit Seismic Detector Advanced Targeting Computer Advanced Targeting Computer > --- WEAPON ----------- Improved Assault Rifle Improved Assault Rifle > --- INVENTORY -------- Improved Ion Engine Improved Ion Engine Light Treads Light Treads Light Treads Light Treads Light Treads Light Treads Light Treads Light Treads Light Treads Improved Heat Sink Cooling System Huge Storage Unit Signal Interpreter Improved Terrain Scanner Seismic Detector Light Armor Plating Advanced Beam Cannon Advanced Beam Cannon Advanced Beam Cannon Advanced Beam Cannon Grenade Launcher Datajack Mace [Rating: 24] Favorites ----------- Power Improved Ion Engine Engine Improved Ion Engine Propulsion Light Treads Treads Light Treads Wheel Armored Wheel Utility Huge Storage Unit Device Seismic Detector Storage Huge Storage Unit Processor Advanced Targeting Computer Hackware Hacking Suite Protection Light Armor Plating Weapon Heavy Assault Rifle Energy Gun Small Laser Energy Cannon Advanced Beam Cannon Ballistic Gun Heavy Assault Rifle Launcher Grenade Launcher Impact Weapon Hammer Build | -11 -10 -10 -9 -9 ------- Run | Yrd Mat Min Mat Min Slots Evolved 2 | . . . 2 . Power . | . . . . . Propulsion . | . . . . . Utility 2 | . . . 2 . Weapon . | . . . . . Parts Attached 62 | 8 14 3 32 5 Power 6 | 1 2 . 3 . Engine 6 | 1 2 . 3 . Core . | . . . . . Reactor . | . . . . . Propulsion 18 | 2 3 . 11 2 Treads 14 | 2 2 . 8 2 Leg . | . . . . . Wheel 4 | . 1 . 3 . Hover . | . . . . . Flight . | . . . . . Utility 19 | 2 5 3 8 1 Device 6 | 1 3 1 . 1 Storage 2 | 1 1 . . . Processor 5 | . 1 2 2 . Hackware 1 | . . . 1 . Protection 5 | . . . 5 . Artifact . | . . . . . Weapon 19 | 3 4 . 10 2 Energy Gun 3 | 1 . . 2 . Energy Cannon 2 | . . . 2 . Ballistic Gun 10 | 2 3 . 3 2 Ballistic Cannon . | . . . . . Launcher 2 | . . . 2 . Special Weapon . | . . . . . Impact Weapon 2 | . 1 . 1 . Slashing Weapon . | . . . . . Piercing Weapon . | . . . . . Special Melee Weapon . | . . . . . Unidentified Prototypes 5 | . . . 5 . Parts Lost 11 | . 5 . 2 4 Power . | . . . . . Propulsion 4 | . 2 . 1 1 Utility 4 | . 2 . . 2 Weapon 3 | . 1 . 1 1 Highest Loss Streak 4 | . 3 . 1 4 To Critical Strikes 2 | . . . . 2 Average Backups 23 | 3 21 24 24 24 Power 2 | . 2 2 2 2 Propulsion 8 | 1 7 9 8 8 Utility 5 | . 4 6 6 4 Weapon 6 | . 5 6 6 7 Tool/Special . | . . . . . Unused Backups 40 | . 14 . 10 16 Power 7 | . 3 . 2 2 Propulsion 12 | . 7 . . 5 Utility 7 | . 1 . 3 3 Weapon 12 | . 3 . 4 5 Tool/Special 2 | . . . 1 1 Average Slot Usage (%) 99 | . 99 100 99 100 Engine 12 | . 14 14 10 11 Treads 16 | . 22 14 11 11 Wheel 8 | . 5 14 10 10 Device 8 | . 13 9 3 . Storage 12 | . 14 14 11 11 Processor 9 | . . 4 20 22 Protection 3 | . . . 7 10 Energy Cannon 4 | . . . 9 10 Ballistic Gun 20 | . 27 28 12 11 Peak Build Rating 24 | 7 15 14 24 24 Average Rating 16 | 5 12 14 22 23 On Entrance 11 | . 7 14 14 24 Avg Prop Armor Cover (%) 9 | . 11 11 8 9 Naked Turns . | . . . . . Heaviest Build 98 | 14 94 94 98 98 Greatest Support 40 | 40 40 20 40 12 Greatest Overweight (x) 8 | . 7 7 8 8 Average Overweight (x) 5 | . 4 6 6 8 Largest Inventory Capacity 25 | 8 25 25 25 25 Average Capacity 24 | 7 24 25 25 25 Most Carried 25 | 7 25 25 25 25 Average Carried 23 | 3 21 24 24 24 Final Capacity 25 | 8 25 25 25 25 Final Carried 25 | 7 25 25 25 21 Class Distribution -------------------- 100% | Mutant Dominant Class ---------------- Mutant | -10/Materials Mutant | -10/Mines Mutant | -9/Materials Mutant | -9/Mines Resources | -11 -10 -10 -9 -9 ----------- Run | Yrd Mat Min Mat Min Matter Collected 1954 | 272 571 202 903 6 Remotely . | . . . . . Salvage Created 3144 | 70 722 315 1972 65 Parts 230 | 10 54 21 143 2 Haulers Intercepted 7 | . 2 . 5 . Recyclers Shooed 4 | 1 1 1 1 . Parts Field Recycled . | . . . . . Retrieved Matter . | . . . . . Parts Self-Destructed . | . . . . . Prevented . | . . . . . Parts Restored . | . . . . . Kills | -11 -10 -10 -9 -9 ------- Run | Yrd Mat Min Mat Min Combat Hostiles Destroyed 59 | . 11 4 38 6 Guns 28 | . 11 4 12 1 Cannons 18 | . . . 18 . AOE 12 | . . . 7 5 Classes Destroyed 13 | 1 5 2 4 1 Worker 11 | . 3 1 7 . Builder 5 | . . 1 3 1 Tunneler 8 | 3 4 1 . . Hauler 7 | . 2 . 5 . Recycler 2 | . . 1 1 . Operator 3 | . 1 . 2 . Watcher 7 | . 2 . 5 . Swarmer 11 | . . . 11 . Grunt 30 | . 11 4 15 . Brawler 1 | . . . 1 . Protector 1 | . . . 1 . Sentry 10 | . . . 10 . Assembled 6 | . . . . 6 Best Kill Streak 10 | 2 3 3 10 6 Combat Bots Only 6 | . 3 2 5 6 Max Kills in Single Turn 4 | 1 1 1 4 3 Gunslinging . | . . . . . Exploded 3 | . . . 3 3 Melee . | . . . . . Uniques/NPCs Destroyed . | . . . . . Combat | -11 -10 -10 -9 -9 -------- Run | Yrd Mat Min Mat Min Hostile Shots Fired 352 | . 75 37 158 82 Missed 90 | . 14 17 41 18 Hits 262 | . 61 20 117 64 Melee 5 | . . . . 5 Projectile 257 | . 61 20 117 59 Critical Strikes 8 | . 1 1 3 3 Damage Taken 3409 | . 815 268 1501 825 Core 576 | . 101 69 248 158 Absorbed by Shields 164 | . . . . 164 Regen/Repaired (Parts) 79 | . 79 . . . Core Remaining (%) 66 | 100 . 32 . . Volleys Fired 224 | 8 70 27 110 9 Largest 2 | 2 2 2 2 2 Hottest 91 | 40 46 46 91 91 Shots Fired 439 | 16 140 54 214 15 Gun 342 | 16 140 54 121 11 Cannon 90 | . . . 88 2 Launcher 7 | . . . 5 2 Special . | . . . . . Kinetic 342 | 16 140 54 121 11 Thermal 90 | . . . 88 2 Explosive 7 | . . . 5 2 Electromagnetic . | . . . . . Robot Hit Streak 25 | 4 11 6 25 22 Robot Miss Streak 4 | 1 4 4 1 1 Penetration Max . | . . . . . Secondary Targets . | . . . . . Shots Hit Robots 306 | 10 89 34 161 12 Core Hits 146 | 5 36 13 77 15 Critical Kills 2 | . . 1 1 . Critical Parts Destroyed 2 | . . . 1 1 Critical Strikes 4 | . . 1 2 1 Meltdown 1 | . . . 1 . Destroy 3 | . . 1 1 1 Melee Attacks 2 | . 1 . 1 . Impact 2 | . 1 . 1 . Slashing . | . . . . . Piercing . | . . . . . Sneak Attacks . | . . . . . Combat Hostiles . | . . . . . Follow-up Attacks . | . . . . . Damage Inflicted 5745 | 101 1277 555 3315 497 Guns 3398 | 101 1277 555 1312 153 Cannons 1599 | . . . 1558 41 Explosions 730 | . . . 427 303 Melee . | . . . . . Ramming 18 | . . . 18 . Kinetic 3398 | 101 1277 555 1312 153 Thermal 1599 | . . . 1558 41 Explosive 730 | . . . 427 303 Electromagnetic . | . . . . . Impact . | . . . . . Slashing . | . . . . . Piercing . | . . . . . Highest Corruption . | . . . . . Average Corruption . | . . . . . Corruption Purged . | . . . . . Corruption Blocked . | . . . . . Overload Shots . | . . . . . Overflow Damage 24 | . . . 24 . Projectiles 14 | . . . 14 . Explosions 10 | . . . 10 . Melee . | . . . . . Knockbacks . | . . . . . Impact . | . . . . . Kinetic . | . . . . . Secondary . | . . . . . Self-Inflicted Damage 46 | . . . 46 . Shots 1 | . . . 1 . Rammed 1 | . . . 1 . Targets Rammed 1 | . . . 1 . Kicked . | . . . . . Crushed . | . . . . . Highest Temperature 222 | . 24 25 222 24 Average Temperature 44 | . 6 12 53 9 Received Heat Transfer 1222 | . 450 168 543 61 Effects 1 | . . . 1 . Energy Bleed 1 | . . . 1 . Siege Activations . | . . . . . Martial Activations . | . . . . . Shielding Activations . | . . . . . Robots Disrupted . | . . . . . Combat Hostiles . | . . . . . Robots Corrupted . | . . . . . Combat Hostiles . | . . . . . Parts Fried . | . . . . . Impact Corruptions . | . . . . . Robots Melted 1 | . . . 1 . Combat Hostiles 1 | . . . 1 . Parts Melted 5 | . . . 5 . Heat Transferred 2859 | . . . 2785 74 Parts Sabotaged . | . . . . . Parts Stolen . | . . . . . Parts Stripped . | . . . . . Power Chain Reactions . | . . . . . Alert | -11 -10 -10 -9 -9 ------- Run | Yrd Mat Min Mat Min Maximum Alert Level 3 | . . . 3 1 Low Security (%) 75 | 100 100 100 38 80 Level 1 7 | . . . 17 19 Level 2 16 | . . . 42 . Level 3 . | . . . 1 . Level 4 . | . . . . . Level 5 . | . . . . . High Security . | . . . . . Max Security . | . . . . . Peak Influence 710 | 5 126 45 710 228 Initial 228 | . . 1 13 228 Average 153 | . 36 5 337 149 Influence Increases 1895 | 15 471 120 1281 8 Destroy 0b10 Robot/C 1040 | . 220 80 740 . Destroy 0b10 Robot/NC 220 | 15 60 20 120 5 Destroy Leader 318 | . 68 20 230 . Successful Hack 62 | . 29 . 33 . Select Force Hacks 90 | . 30 . 60 . Disable Machine 45 | . 30 . 15 . Destroy Structure 45 | . 4 . 38 3 Lose Combat Pursuer 75 | . 30 . 45 . Influence Decreases 1895 | 15 466 91 730 593 Entered New Map 382 | . . 4 21 357 Time Decay 1207 | 15 426 87 539 140 Lost Part 100 | . 40 . 20 40 Lost Ally 56 | . . . . 56 Purge Threat 150 | . . . 150 . Squads Dispatched 9 | . 3 . 6 . Investigation 4 | . 2 . 2 . Extermination . | . . . . . Reinforcement 4 | . 1 . 3 . Assault 1 | . . . 1 . Garrison . | . . . . . Intercept . | . . . . . Searches Triggered . | . . . . . Construction Impeded . | . . . . . Haulers Reinforced . | . . . . . Active Scanning Responses . | . . . . . Cargo Convoy Interrupts . | . . . . . Stealth | -11 -10 -10 -9 -9 --------- Run | Yrd Mat Min Mat Min Distress Signals 7 | . 4 . 3 . Communications Jammed . | . . . . . Distress Signals . | . . . . . Times Spotted 94 | . 21 4 50 19 Peak Tracking Total 19 | . 5 2 5 19 Tactical Retreats 5 | . 2 . 2 1 Traps | -11 -10 -10 -9 -9 ------- Run | Yrd Mat Min Mat Min Traps Triggered 3 | . 2 . 1 . Indirectly . | . . . . . Trap Hack Attempts . | . . . . . Triggered . | . . . . . Disarmed . | . . . . . Reprogrammed . | . . . . . Reused . | . . . . . Traps Extracted . | . . . . . Installed . | . . . . . Triggered . | . . . . . Machines | -11 -10 -10 -9 -9 ---------- Run | Yrd Mat Min Mat Min Machines Disabled 3 | . 2 . 1 . Max in Single Turn 1 | . 1 . 1 . Machines Repaired . | . . . . . Machines Dismantled . | . . . . . Machines Sabotaged . | . . . . . Overloaded Fab Kills . | . . . . . Hacking | -11 -10 -10 -9 -9 --------- Run | Yrd Mat Min Mat Min Machines Accessed 19 | . 8 . 11 . Terminals 12 | . 6 . 6 . Fabricators . | . . . . . Repair Stations 2 | . 1 . 1 . Recycling Units 3 | . 1 . 2 . Scanalyzers 2 | . . . 2 . Garrison Access . | . . . . . Total Hacks 61 | . 22 . 39 . Successful 37 | . 15 . 22 . Failed 23 | . 7 . 16 . Catastrophic 2 | . 1 . 1 . Database Lockouts 1 | . . . 1 . Manual 35 | . 14 . 21 . Terminals 38 | . 17 . 21 . Fabricators . | . . . . . Repair Stations 7 | . 4 . 3 . Recycling Units 4 | . 1 . 3 . Scanalyzers 12 | . . . 12 . Garrison Access . | . . . . . Terminal Hacks 8 | . 4 . 4 . Record 1 | . . . 1 . Terminal Index 1 | . 1 . . . Alert Level 3 | . 2 . 1 . Unreport Threat 1 | . . . 1 . Locate Traps 1 | . . . 1 . Security Status 1 | . 1 . . . Fabricator Hacks . | . . . . . Repair Station Hacks 3 | . 2 . 1 . Scan Component 2 | . 1 . 1 . Repair 1 | . 1 . . . Recycling Unit Hacks . | . . . . . Scanalyzer 9 | . . . 9 . Insert Component 2 | . . . 2 . Analyze 1 | . . . 1 . Retrieve Study 6 | . . . 6 . Garrison Access Hacks . | . . . . . Unauthorized Hacks 17 | . 9 . 8 . Terminals 14 | . 8 . 6 . Assimilate 1 | . 1 . . . Botnet 3 | . 2 . 1 . Skim 10 | . 5 . 5 . Fabricators . | . . . . . Repair Stations . | . . . . . Recycling Units 3 | . 1 . 2 . Tunnel 3 | . 1 . 2 . Scanalyzers . | . . . . . Garrison Access . | . . . . . Data Cores Recovered . | . . . . . Used . | . . . . . Hacking Detections 15 | . 6 . 9 . Full Trace Events . | . . . . . Feedback Events . | . . . . . Feedback Blocked . | . . . . . Robot Schematics Acquired . | . . . . . Robots Built . | . . . . . Authchips . | . . . . . Time . | . . . . . Total Robot Build Rating . | . . . . . Part Schematics Acquired 1 | . . . 1 . Parts Built . | . . . . . Authchips . | . . . . . Time . | . . . . . Total Part Build Rating . | . . . . . Part Studies Acquired 6 | . . . 6 . Parts Repaired 1 | . 1 . . . Time 32 | . 32 . . . Parts Recycled . | . . . . . Recycled Matter . | . . . . . Retrieved Matter . | . . . . . Retrieved Components . | . . . . . Parts Scanalyzed 2 | . . . 2 . Part Schematics Acquired 1 | . . . 1 . Parts Damaged . | . . . . . Bothacking | -11 -10 -10 -9 -9 ------------ Run | Yrd Mat Min Mat Min Used RIF Installer . | . . . . . Robots Hacked . | . . . . . Non-combat . | . . . . . Combat . | . . . . . Robot Hacks Applied . | . . . . . Relay Couplers Released . | . . . . . Fabnet Peak Effective % . | . . . . . Robots Rewired . | . . . . . Allies Hacked . | . . . . . Hacks Repelled . | . . . . . Allies | -11 -10 -10 -9 -9 -------- Run | Yrd Mat Min Mat Min Total Allies 4 | . 1 . . 3 Largest Group 3 | . 1 . . 3 Highest-Rated Group 40 | . 10 . . 40 Highest-Rated Ally 16 | . 10 . . 16 Total Orders . | . . . . . Ally Attacks 1 | . . . . 1 Total Damage 18 | . . . . 18 Kills . | . . . . . Allies Corrupted . | . . . . . Allies Melted . | . . . . . Intel | -11 -10 -10 -9 -9 ------- Run | Yrd Mat Min Mat Min Active Infowar (turns) 3656 | 31 2416 455 754 . Seismic 3654 | 31 2414 455 754 . T.N.C. 2 | . 2 . . . Robot Analysis Total . | . . . . . Derelict Logs Recovered 1 | . . . . 1 Drone Launches . | . . . . . Drone Recoveries . | . . . . . Exploration | -11 -10 -10 -9 -9 ------------- Run | Yrd Mat Min Mat Min Turns Passed 6383 | 163 2776 685 2446 313 Spaces Moved 2260 | 83 849 279 910 139 Core 20 | 20 . . . . Treads 647 | 63 463 2 119 . Legs . | . . . . . Wheels 1593 | . 386 277 791 139 Hover . | . . . . . Flight . | . . . . . Fastest Speed 50 | 50 160 195 185 200 Average Speed 221 | 133 253 197 210 200 Slowest Speed 480 | 160 320 480 320 200 Overloaded Moves . | . . . . . Propulsion Burnouts . | . . . . . Robots Hopped . | . . . . . Potential Cave-ins . | . . . . . Cave-ins Triggered . | . . . . . Exploration Rate (%) 56 | 6 92 45 79 60 Regions Visited 4 Branch Regions 2 Pre-discovered Areas 6 | . 2 1 2 1 Known Exits Taken 2 | . . 1 1 . Unknown Exits Taken 2 | 1 1 . . . Scrap Searched 2 | . . 1 . 1 Spaces Dug 5 | . . . 5 . Terrain Destroyed 31 | . . . 28 3 Melee . | . . . . . Projectile . | . . . . . AOE 31 | . . . 28 3 Terrain Rammed . | . . . . . Walls Destroyed . | . . . . . Machines Disabled . | . . . . . Actions | -11 -10 -10 -9 -9 --------- Run | Yrd Mat Min Mat Min Total 3225 | 120 1344 363 1241 157 Wait 498 | 8 345 45 98 2 Move 2256 | 82 848 278 909 139 Hop . | . . . . . Pick Up 89 | 14 42 5 28 . Fast Attach 9 | . 1 . 8 . Attach 22 | 7 5 . 6 4 Detach . | . . . . . Swap 54 | 1 11 3 36 3 Drop 70 | . 21 5 44 . Fire 224 | 8 70 27 110 9 Melee 2 | . 1 . 1 . Ram 1 | . . . 1 . Kick . | . . . . . Crush . | . . . . . Escape Stasis . | . . . . . Rewire . | . . . . . Trap . | . . . . . Miscellaneous . | . . . . . Route ------- -11/Scrapyard -10/Materials (discovered 5 exits: *Mat x3 / [*Min] / *Sub) -10/Mines (discovered 3 exits: *Mat x2 / Sub) -9/Materials (discovered 4 exits: *Mat x3 / *Min) -9/Mines (discovered 3 exits: *Mat x2 / Exi) History --------- Turn | Location | Event 6 | -11/Scrapyard | Discovered new exit (range 14) 164 | -11/Scrapyard | Entered Materials 318 | -10/Materials | Build established: Mutant 1037 | -10/Materials | Discovered new exit (range 10) 1518 | -10/Materials | Lost 3 parts (2n1u) 1974 | -10/Materials | Discovered new exit (range 16) 2016 | -10/Materials | Learned location of 2 exits from Mines 2045 | -10/Materials | Identified exit to Subcaves 2045 | -10/Materials | Identified exit to Materials 2066 | -10/Materials | Learned location of 3 exits from Materials 2084 | -10/Materials | Learned location of 2 exits from Mines 2105 | -10/Materials | Learned location of 2 exits from Mines 2876 | -10/Materials | Repaired Hvy. Assault Rifle 2940 | -10/Materials | Entered Mines 2963 | -10/Mines | Core integrity fell below 50% 2971 | -10/Mines | Met a Derelict bent on vengeance 3259 | -10/Mines | Learned location of Storage (-7) 3625 | -10/Mines | Entered Materials 3625 | -9/Materials | Evolved 2 slots: Utility x2 3626 | -9/Materials | Identified exit to Mines 3627 | -9/Materials | Identified exit to Materials 3706 | -9/Materials | Central database locked down 5225 | -9/Materials | First assault squad dispatched 5308 | -9/Materials | Core integrity fell below 50% 5660 | -9/Materials | Learned location of 2 exits from Materials 5767 | -9/Materials | Learned location of 1 exit from Storage 5803 | -9/Materials | Learned Storage stockpile data 5865 | -9/Materials | Learned Storage interactive machine intel 5910 | -9/Materials | Learned Storage stockpile data 6071 | -9/Materials | Entered Mines 6072 | -9/Mines | Identified exit to Exiles 6099 | -9/Mines | Assisted by bots powering up and referring to "LRC-V3" 6339 | -9/Mines | Learned location of Zion (-6) 6352 | -9/Mines | Assembled infested the area 6357 | -9/Mines | Assisted by a Guerilla fighting off Assembled 6371 | -9/Mines | Core integrity fell below 20% 6384 | -9/Mines | Destroyed by as-78008 with Assembled Rifle Last Messages --------------- 06372_ as-71211 destroyed. 06373_ HV Slug penetrates as-92575. 06373_ as-92575 suffers critical hit (Destroy). 06373_ as-92575 destroyed. 06375_ T-07 Excavator is excavating. 06376_ R-06 Scavenger collects Aluminum Leg. 06377_ HV Slug penetrates as-47581. 06377_ as-47581 destroyed. 06377_ HV Slug penetrates Earth. 06378_ as-98744 destroyed. 06379_ as-62108 suffers critical hit (Destroy). 06380_ T-07 Excavator is excavating. 06381_ HV Slug penetrates as-49138. 06381_ as-49138 knocked back. 06381_ as-62108 suffers critical hit (Destroy). 06381_ Destroyed Asb. F-torch. 06383_ HV Slug penetrates as-62108. 06383_ as-62108 destroyed. 06383_ HV Slug penetrates Wall. 06384_ T-07 Excavator is excavating. Map ----- +----------------------------------------------------+ | ?????????? #???????????????### ######### ##??? | | ?????????? ??????????????## #???? | | ?????????? ??????????????# """ #???? | | ?????????? ???????######## """ #######???? | | ??????????# ???????# """ #?????????? | | ??????????# #???????# ####### #?????????? | | ??????????# #???????# #?????## #### ##?????????? | | ??????????# ######### #?####?# #??####??????????? | | ?########## !%* ### ## #????????????????? | | ############ ##???????????????? | | ?#### ## ####??????????# #???????????????? | | ???????# #?????????????## ##??????????????? | | ????#??# #????####??????#### ####???????????? | | ????# ?# #??### ##????????### ##??????????? | | ?#### ## #### #??????????## #??????????? | | ## ## #???????????# #??????????? | | #???????????# #??????????? | | ########????## < #?????????? | | ##????### #?????????? | | """" h####????# ##?????????? | | # """" ## #####?####??????????? | | ###### """" #### % % ##??????????????? | | ?????## #??## % #??????????????? | | ??????# ##???###% % ##?????????????? | | ??????# #####??????## % #?????????????? | | ??????## #???????????#@%% #????????????? | | ???????### #?????????? % #???????????? | | ?????????# #?????????# %a #???????????? | | ?????????# #?????????# ##; % a ;;#??????????? | | ?????????# #????????? ??## %a % ###??????????? | | ?????????# ????????# t ????# %aa #????????????? | | ??????????###????????# #?????; % #???????????? | | ????????????????????? #???????# #???????????? | | ????????????????????###?????????## ???????????? | | ??????????????????????????????????# ???????????? | | ????????????????????????????????????;????????>???? | | ?????????????????????????????????????????????????? | | ?????????????????????????????????????????????????? | | ?????????????????????????????????????????????????? | | ?????????????????????????????????????????????????? | | ?????????????????????????????????????????????????? | | ?????????????????????????????????????????????????? | | ?????????????????????????????????????????????????? | | | | | | | | | | | | | | | +----------------------------------------------------+ Best States ------------- Heat Dissipation 39 Energy Generation 14 Energy Capacity 280 Matter Stores 300 Matter Capacity 300 Sight Range 16 Terrain Scan Density 10 Armor Coverage 150 Evasion (%) 50 Targeting Accuracy 16 Recoil Reduction 2 Offensive Hacking 10 Item Schematics ----------------- Seismic Detector | -9/Materials | Scanalyzed Robot Schematics ------------------ None Fabricated ------------ Nothing Repaired ---------- Hvy. Assault Rifle | 31% | -10/Materials Studied --------- Arm. Wheel | -9/Materials | Hacked Lgt. Treads | -9/Materials | Hacked Hvy. Assault Rifle | -9/Materials | Hacked Lgt. Assault Rifle | -9/Materials | Hacked Assault Rifle | -9/Materials | Hacked Hammer | -9/Materials | Hacked Alien Tech Used ----------------- None Achievements -------------- None Challenges ------------ None Game ------ Seed MicroGravjetMembrane Manual? 0 Play Time 00:31:55 Cumulative 178.7 hours Start 2025.11.09 @ 16:30:55 End 2025.11.09 @ 17:00:52 Sessions 1 Manual Loads 0 Difficulty Rogue Special Mode None Game No. 123 Rogue 123 Adventurer 0 Explorer 0 Win Type - Total 6 Types 4/0/1/1/0/0/0/0/0/0 Lore% 82 Gallery% 74 Achievement% 54 Wizard Run 0 Options --------- Layout 1 ASCII 0 Keyboard 0 Movement Mouse Keybinds 0 Fullscreen 2 Font 24/Smallcaps Map View 50x35 Zoom Use 0% Tactical HUD 1 Map Filters NONE Filters NONE Steam 1 RUN: 34cc554c-6328-4109-be98-42ea5db77c46